Cogmind - Beta 14 @@@ ROGUE MODE // 2024.10.12 @ 21:33:36 Player: Evel Wyn Result: Destroyed by S-43 Plague with Heavy Machine Gun Performance ------------- Evolutions (6) 3000 Regions Visited (15) 3000 Robots Destroyed (83) 415 Value Destroyed (2357) 2357 Prototype IDs (39) 780 Alien Tech Used (0) 0 Bonus (1466) 1466 TOTAL SCORE: 11018 Bonus ------- High Alert Combat Kills 102 Follower Combat Kills 138 Registered with UFD 300 Met Warlord at Base 500 MAIN.C Attacked Warlord 500 Warlord Defense Kills 108 Friendly Fire -182 Cogmind --------- Core Integrity 0/1150 Matter 300/300 Energy 99/100 System Corruption 4% Temperature Cool (0) Movement Core (50) Location -3/Proximity Caves Parts ------- > --- POWER (2) -------- (None) > --- PROPULSION (8) --- (None) > --- UTILITY (7) ------ Improved Transmission Jammer Improved System Shield A0-MCA's Component Scanner > --- WEAPON (2) ------- (None) > --- INVENTORY (5) ---- VTOL Module Hardened Heavy Armor Plating Makeshift Ablative Armor Thermoblaster Peak State ------------ > --- POWER ------------ Micro Fission Core Light Antimatter Reactor > --- PROPULSION ------- VTOL Module Cesium-ion Thruster Nuclear Pulse Array Field Propulsion Array Field Propulsion Array > --- UTILITY ---------- Advanced Cooling System Enhanced Optical Array Improved Sensor Array Improved Transmission Jammer Phase Shifter Improved Hacking Suite A0-MCA's Component Scanner > --- WEAPON ----------- Quantum Rifle Quantum Rifle > --- INVENTORY -------- Light Angular Momentum Engine Compact Wheel VTOL Module Impulse Thruster Improved System Shield [Rating: 115] Favorites ----------- Power Light Nuclear Core Engine Ion Engine Power Core Light Nuclear Core Reactor Light Antimatter Reactor Propulsion VTOL Module Treads Light Treads Leg Aluminum Leg Flight Unit VTOL Module Utility A0-MCA's Component Scanner Device Heat Sink Storage Small Storage Unit Processor A0-MCA's Component Scanner Hackware Improved Hacking Suite Protection Improved Light Armor Plating Weapon Quantum Rifle Energy Gun Quantum Rifle Ballistic Gun High-powered Shotgun Launcher Rocket Launcher Special Weapon Plasma Cutter Build | -11 -10 -9 -8 -8 -8 -8 -6 -5 -5 -5 -4 -4 -4 -4 -3 ------- Run | Yrd Mat Mat Mat Sto Rec Scr Fac Fac Upp Upp Fac Upp Upp War Pro Slots Evolved 12 | . . 2 2 . . . 4 2 . . 2 . . . . Power 1 | . . . . . . . 1 . . . . . . . . Propulsion 6 | . . . 2 . . . 2 . . . 2 . . . . Utility 5 | . . 2 . . . . 1 2 . . . . . . . Weapon . | . . . . . . . . . . . . . . . . Parts Attached 110 | 13 3 14 13 5 2 6 18 7 2 1 3 8 3 12 . Power 16 | 2 . 3 1 1 . . 4 . 1 . . 3 . 1 . Engine 10 | 2 . 3 . . . . 3 . . . . 1 . 1 . Core 5 | . . . 1 1 . . 1 . 1 . . 1 . . . Reactor 1 | . . . . . . . . . . . . 1 . . . Propulsion 35 | 2 1 5 4 1 . 4 7 1 . . 2 1 . 7 . Treads 4 | . . 4 . . . . . . . . . . . . . Leg 5 | 2 1 1 . . . . 1 . . . . . . . . Wheel . | . . . . . . . . . . . . . . . . Hover . | . . . . . . . . . . . . . . . . Flight 26 | . . . 4 1 . 4 6 1 . . 2 1 . 7 . Utility 37 | 5 1 4 5 1 2 2 4 3 1 . 1 2 3 3 . Device 19 | 3 1 2 2 . 1 1 3 2 1 . 1 2 . . . Storage 3 | 2 . . 1 . . . . . . . . . . . . Processor 5 | . . . . . 1 1 1 1 . . . . 1 . . Hackware 2 | . . . . . . . . . . . . . 2 . . Protection 8 | . . 2 2 1 . . . . . . . . . 3 . Artifact . | . . . . . . . . . . . . . . . . Weapon 22 | 4 1 2 3 2 . . 3 3 . 1 . 2 . 1 . Energy Gun 9 | 1 1 1 1 . . . . 1 . 1 . 2 . 1 . Energy Cannon . | . . . . . . . . . . . . . . . . Ballistic Gun 8 | 2 . 1 . . . . 3 2 . . . . . . . Ballistic Cannon . | . . . . . . . . . . . . . . . . Launcher 2 | . . . 1 1 . . . . . . . . . . . Special Weapon 3 | 1 . . 1 1 . . . . . . . . . . . Impact Weapon . | . . . . . . . . . . . . . . . . Slashing Weapon . | . . . . . . . . . . . . . . . . Piercing Weapon . | . . . . . . . . . . . . . . . . Special Melee Weapon . | . . . . . . . . . . . . . . . . Unidentified Prototypes . | . . . . . . . . . . . . . . . . Corrupted Parts 1 | . . . . . . . . . . . . . . 1 . System Corruption 3 | . . . . . . . . . . . . . . 3 . Parts Lost 42 | . 1 4 1 4 . . 9 3 . . . 1 2 14 3 Power 6 | . . . . 1 . . 1 1 . . . . . 3 . Propulsion 19 | . . 2 . 1 . . 4 2 . . . . . 8 2 Utility 11 | . . 1 1 1 . . 1 . . . . 1 2 3 1 Weapon 6 | . 1 1 . 1 . . 3 . . . . . . . . Highest Loss Streak 13 | . 1 2 1 3 . . 9 3 . . . 1 2 10 13 To Critical Strikes . | . . . . . . . . . . . . . . . . Average Slot Usage (%) 86 | . 98 92 84 94 99 96 81 76 86 88 77 80 80 82 20 Engine 3 | . 14 11 6 . . . 3 2 . . . 2 . . . Core 4 | . . . 2 9 9 9 1 5 10 11 10 6 5 4 . Treads 3 | . . 16 13 . . . . . . . . . . . . Leg 2 | . 28 4 . . . . . . . . . . . . . Flight 22 | . . . 8 36 36 35 36 29 29 29 25 26 26 26 2 Device 16 | . 14 21 19 21 18 14 10 11 16 17 21 23 16 13 5 Storage 3 | . 14 11 6 . . . . . . . . . . . . Processor 7 | . . . . . 8 9 13 14 17 17 10 10 10 10 5 Hackware 1 | . . . . . . . . . . . . . 6 10 7 Protection 4 | . . 8 8 9 9 9 2 . . . . . . . . Energy Gun 5 | . 12 11 8 . . . . . 5 5 5 8 10 9 . Ballistic Gun 4 | . 14 8 7 . . . 8 10 5 5 5 1 . . . Launcher 2 | . . . . 9 9 9 2 . . . . . . . . Special Weapon 2 | . . . 1 8 9 9 1 . . . . . . . . Peak Build Rating 115 | 9 9 15 23 23 23 32 54 67 78 79 100 112 115 115 33 Average Rating 42 | 8 8 11 15 20 22 26 46 56 76 78 77 107 111 108 25 On Entrance 47 | . 9 8 13 22 20 23 32 54 67 78 79 100 112 113 33 Naked Turns . | . . . . . . . . . . . . . . . . Heaviest Build 40 | 15 15 23 28 16 15 17 26 26 28 29 30 35 35 40 1 Greatest Support 52 | 20 20 40 40 16 16 18 26 30 30 30 52 52 52 52 10 Greatest Overweight (x) 1 | 1 . 1 . . . . 1 1 . . . . . . . Average Overweight (x) . | . . . . . . . . . . . . . . . . Largest Inventory Capacity 10 | 8 8 8 10 5 5 5 5 5 5 5 5 5 5 5 5 Average Capacity 5 | 6 8 8 8 5 5 5 5 5 5 5 5 5 5 5 5 Most Carried 10 | 8 8 8 10 5 5 5 5 5 5 5 5 5 5 5 5 Average Carried 5 | 5 7 7 8 4 4 4 4 4 4 5 4 4 4 4 5 Final Capacity 8 | 8 8 8 5 5 5 5 5 5 5 5 5 5 5 5 5 Final Carried 8 | 8 8 8 5 3 4 5 5 5 5 5 5 5 4 5 5 Class Distribution -------------------- 25% | Sprinter 23% | Commander-Sprinter 23% | Mutant 14% | Scavenger-Mutant 5% | Hacker-Mutant 3% | Hacker-Sprinter Dominant Class ---------------- Mutant | -10/Materials Scavenger-Mutant | -9/Materials Scavenger-Mutant | -8/Materials Sprinter | -8/Storage Commander-Sprinter | -8/Recycling Commander-Sprinter | -8/Scraptown Sprinter | -6/Factory Sprinter | -5/Factory Sprinter | -5/Upper Caves Sprinter | -5/Upper Caves Sprinter | -4/Factory Sprinter | -4/Upper Caves Sprinter | -4/Upper Caves Commander-Sprinter | -4/Warlord Mutant | -3/Proximity Caves Resources | -11 -10 -9 -8 -8 -8 -8 -6 -5 -5 -5 -4 -4 -4 -4 -3 ----------- Run | Yrd Mat Mat Mat Sto Rec Scr Fac Fac Upp Upp Fac Upp Upp War Pro Matter Collected 1912 | 310 135 185 220 54 209 77 124 83 160 . . 235 22 98 . Remotely . | . . . . . . . . . . . . . . . . Salvage Created 2213 | 178 272 477 482 159 . . 227 83 . . . 266 47 22 . Parts 146 | 11 7 31 30 19 . . 22 4 . . . 16 3 3 . Haulers Intercepted 2 | . . . 2 . . . . . . . . . . . . Recyclers Shooed 1 | . 1 . . . . . . . . . . . . . . Parts Field Recycled . | . . . . . . . . . . . . . . . . Retrieved Matter . | . . . . . . . . . . . . . . . . Parts Self-Destructed 22 | . . . . . . . . . . . . 18 4 . . Prevented 2 | . . . . . . . . . . . . . 2 . . Kills | -11 -10 -9 -8 -8 -8 -8 -6 -5 -5 -5 -4 -4 -4 -4 -3 ------- Run | Yrd Mat Mat Mat Sto Rec Scr Fac Fac Upp Upp Fac Upp Upp War Pro Combat Hostiles Destroyed 68 | . 6 11 9 10 . . 17 2 . . . 9 2 2 . Guns 38 | . 6 11 6 . . . 1 2 . . . 9 2 1 . AOE 30 | . . . 3 10 . . 16 . . . . . . 1 . Classes Destroyed 12 | 2 2 1 2 2 . . . 2 . . . 1 . . . Worker 1 | . . . 1 . . . . . . . . . . . . Builder 2 | . . . . 1 . . 1 . . . . . . . . Tunneler 5 | 4 . . 1 . . . . . . . . . . . . Hauler 2 | . . . 2 . . . . . . . . . . . . Recycler 2 | 1 1 . . . . . . . . . . . . . . Operator 1 | . . . . . . . . 1 . . . . . . . Watcher 1 | . . . . 1 . . . . . . . . . . . Swarmer 40 | . 3 2 3 4 . . 16 . . . . 8 2 2 . Grunt 20 | . 3 5 5 5 . . 2 . . . . . . . . Sentry 6 | . . 4 1 1 . . . . . . . . . . . Hunter 2 | . . . . . . . . 2 . . . . . . . Programmer 1 | . . . . . . . . . . . . 1 . . . Best Kill Streak 15 | 2 4 5 4 8 . . 15 2 . . . 4 2 1 . Combat Bots Only 15 | . 4 5 3 6 . . 15 2 . . . 4 2 1 . Max Kills in Single Turn 4 | 1 1 2 4 3 . . 3 1 . . . 2 1 1 . Gunslinging 1 | . . . . . . . . . . . . 1 . . . Exploded 3 | . . . 3 2 . . 3 . . . . . . 1 . Melee . | . . . . . . . . . . . . . . . . Uniques/NPCs Destroyed . | . . . . . . . . . . . . . . . . Combat | -11 -10 -9 -8 -8 -8 -8 -6 -5 -5 -5 -4 -4 -4 -4 -3 -------- Run | Yrd Mat Mat Mat Sto Rec Scr Fac Fac Upp Upp Fac Upp Upp War Pro Hostile Shots Fired 590 | . 62 67 38 57 . . 107 43 . . 4 44 35 80 53 Missed 219 | . 13 12 12 27 . . 60 8 . . 3 19 20 25 20 Damage Taken 6038 | . 482 687 389 499 . . 880 575 . . 13 382 233 1182 716 Core 1800 | . 141 68 67 88 . . 128 136 . . . 89 91 328 664 Absorbed by Shields 46 | . . . . . . . . . . . . . . 46 . Regen/Repaired (Parts) 95 | . . . . . . 10 . . . . . . . 85 . Core Remaining (%) 77 | 100 43 83 . . . 71 84 . . 86 . . . . . Volleys Fired 270 | 60 59 34 27 21 . . 23 14 . . . 14 6 12 . Largest 2 | 1 2 2 2 1 . . 2 2 . . . 2 2 2 . Hottest 188 | 100 70 79 79 33 . . 56 50 . . . 188 188 139 . Shots Fired 374 | 60 82 54 53 21 . . 26 24 . . . 28 10 16 . Gun 306 | 26 82 54 52 . . . 14 24 . . . 28 10 16 . Cannon . | . . . . . . . . . . . . . . . . Launcher 32 | . . . 1 19 . . 12 . . . . . . . . Special 36 | 34 . . . 2 . . . . . . . . . . . Kinetic 114 | . 30 20 26 . . . 14 24 . . . . . . . Thermal 206 | 60 52 34 8 2 . . . . . . . 28 10 12 . Explosive 32 | . . . 1 19 . . 12 . . . . . . . . Electromagnetic 18 | . . . 18 . . . . . . . . . . . . Entropic 4 | . . . . . . . . . . . . . . 4 . Robot Hit Streak 12 | 6 10 12 9 5 . . 3 9 . . . 8 2 2 . Robot Miss Streak 11 | 1 3 1 3 4 . . 11 4 . . . 2 3 4 . Penetration Max . | . . . . . . . . . . . . . . . . Secondary Targets 6 | . . 1 . . . . . 1 . . . 3 1 . . Max Gunslinging Chain 1 | . . 1 . . . . . 1 . . . 1 1 . . Shots Hit Robots 193 | 21 29 42 39 8 . . 6 20 . . . 18 4 6 . Core Hits 146 | 6 12 21 20 33 . . 31 10 . . . 10 2 1 . Critical Kills . | . . . . . . . . . . . . . . . . Critical Parts Destroyed . | . . . . . . . . . . . . . . . . Critical Strikes 4 | 1 2 1 . . . . . . . . . . . . . Burn 4 | 1 2 1 . . . . . . . . . . . . . Melee Attacks . | . . . . . . . . . . . . . . . . Impact . | . . . . . . . . . . . . . . . . Slashing . | . . . . . . . . . . . . . . . . Piercing . | . . . . . . . . . . . . . . . . Sneak Attacks . | . . . . . . . . . . . . . . . . Combat Hostiles . | . . . . . . . . . . . . . . . . Follow-up Attacks . | . . . . . . . . . . . . . . . . Damage Inflicted 6098 | 265 392 608 888 1249 . . 1511 327 . . . 554 112 189 3 Guns 3142 | 265 392 608 649 . . . 46 327 . . . 554 112 189 . Cannons . | . . . . . . . . . . . . . . . . Explosions 2953 | . . . 239 1249 . . 1465 . . . . . . . . Melee . | . . . . . . . . . . . . . . . . Ramming 3 | . . . . . . . . . . . . . . . 3 Kinetic 1054 | . 180 246 255 . . . 46 327 . . . . . . . Thermal 1936 | 265 212 362 104 . . . 211 . . . . 554 112 116 . Explosive 2742 | . . . 239 1249 . . 1254 . . . . . . . . Electromagnetic 290 | . . . 290 . . . . . . . . . . . . Impact . | . . . . . . . . . . . . . . . . Slashing . | . . . . . . . . . . . . . . . . Piercing . | . . . . . . . . . . . . . . . . Entropic 73 | . . . . . . . . . . . . . . 73 . Highest Corruption 4 | . 4 . 1 2 2 2 . . . . . . . 3 4 Average Corruption 1 | . 3 . 1 1 2 2 . . . . . . . 3 3 Corruption Purged . | . . . . . . . . . . . . . . . . Corruption Blocked . | . . . . . . . . . . . . . . . . Effects 7 | . . . 2 2 1 . . . . . . . . 1 1 Matter Fused 5 | . . . 1 2 1 . . . . . . . . 1 . Energy Discharges 1 | . . . 1 . . . . . . . . . . . . Data Loss (minor) 1 | . . . . . . . . . . . . . . . 1 Overload Shots . | . . . . . . . . . . . . . . . . Overflow Damage 137 | . . . 47 41 . . 49 . . . . . . . . Projectiles . | . . . . . . . . . . . . . . . . Explosions 137 | . . . 47 41 . . 49 . . . . . . . . Melee . | . . . . . . . . . . . . . . . . Knockbacks . | . . . . . . . . . . . . . . . . Impact . | . . . . . . . . . . . . . . . . Kinetic . | . . . . . . . . . . . . . . . . Secondary . | . . . . . . . . . . . . . . . . Self-Inflicted Damage 266 | . . . . 66 . . 199 . . . . . . . 1 Shots 7 | . . . . 3 . . 4 . . . . . . . . Rammed 1 | . . . . . . . . . . . . . . . 1 Targets Rammed 1 | . . . . . . . . . . . . . . . 1 Kicked . | . . . . . . . . . . . . . . . . Crushed . | . . . . . . . . . . . . . . . . Highest Temperature 611 | 100 186 306 17 15 . . 327 36 . . . 195 411 611 . Average Temperature 89 | 22 89 98 5 6 . . 55 12 . . . 60 116 153 . Received Heat Transfer 1147 | . 120 276 225 189 . . 105 . . . . . 12 202 18 Effects 31 | . . . . . . . 1 . . . . . 3 27 . Shutdowns 6 | . . . . . . . . . . . . . 2 4 . Energy Bleed 6 | . . . . . . . 1 . . . . . . 5 . Interference 8 | . . . . . . . . . . . . . . 8 . Short Circuit 2 | . . . . . . . . . . . . . . 2 . Damage (minor) 2 | . . . . . . . . . . . . . 1 1 . Damage (major) 6 | . . . . . . . . . . . . . . 6 . Damage (core) 1 | . . . . . . . . . . . . . . 1 . Siege Activations . | . . . . . . . . . . . . . . . . Robots Corrupted . | . . . . . . . . . . . . . . . . Combat Hostiles . | . . . . . . . . . . . . . . . . Parts Fried 1 | . . . 1 . . . . . . . . . . . . Impact Corruptions . | . . . . . . . . . . . . . . . . Robots Melted . | . . . . . . . . . . . . . . . . Combat Hostiles . | . . . . . . . . . . . . . . . . Parts Melted 4 | 1 2 1 . . . . . . . . . . . . . Heat Transferred 4122 | 851 777 1073 259 . . . 200 . . . . 666 148 148 . Parts Sabotaged 3 | . . . . . . . . . . . . . . 3 . Parts Stolen . | . . . . . . . . . . . . . . . . Parts Stripped . | . . . . . . . . . . . . . . . . Power Chain Reactions . | . . . . . . . . . . . . . . . . Alert | -11 -10 -9 -8 -8 -8 -8 -6 -5 -5 -5 -4 -4 -4 -4 -3 ------- Run | Yrd Mat Mat Mat Sto Rec Scr Fac Fac Upp Upp Fac Upp Upp War Pro Peak Influence 944 | 25 191 360 380 944 367 . 689 284 . . 120 . . . . Initial 367 | . . 80 67 160 367 . . 259 . . 90 . . . . Average 220 | 11 59 234 161 603 367 . 419 274 . . 112 . . . . Maximum Alert Level 3 | . . 1 1 3 1 . 2 1 . . . . . . . Low Security (%) 59 | 100 100 51 71 16 . . 25 . . . 100 . . . . Level 1 24 | . . 48 28 18 100 . 4 100 . . . . . . . Level 2 12 | . . . . 21 . . 70 . . . . . . . . Level 3 3 | . . . . 44 . . . . . . . . . . . Level 4 . | . . . . . . . . . . . . . . . . Level 5 . | . . . . . . . . . . . . . . . . High Security . | . . . . . . . . . . . . . . . . Max Security . | . . . . . . . . . . . . . . . . Squads Dispatched 20 | . 1 1 3 5 . . 10 . . . . . . . . Investigation 8 | . 1 . 2 2 . . 3 . . . . . . . . Extermination . | . . . . . . . . . . . . . . . . Reinforcement 9 | . . 1 1 2 . . 5 . . . . . . . . Assault 2 | . . . . . . . 2 . . . . . . . . Garrison 1 | . . . . 1 . . . . . . . . . . . Intercept . | . . . . . . . . . . . . . . . . Searches Triggered . | . . . . . . . . . . . . . . . . Construction Impeded 3 | . . . 1 1 . . 1 . . . . . . . . Haulers Reinforced . | . . . . . . . . . . . . . . . . Active Scanning Responses . | . . . . . . . . . . . . . . . . Cargo Convoy Interrupts . | . . . . . . . . . . . . . . . . Stealth | -11 -10 -9 -8 -8 -8 -8 -6 -5 -5 -5 -4 -4 -4 -4 -3 --------- Run | Yrd Mat Mat Mat Sto Rec Scr Fac Fac Upp Upp Fac Upp Upp War Pro Distress Signals 4 | . 1 . . 2 . . 1 . . . . . . . . Communications Jammed 17 | . . . . . . . . . . . . . . 17 . Distress Signals 17 | . . . . . . . . . . . . . . 17 . Times Spotted 188 | . 12 15 9 22 . . 52 5 . . 3 14 12 32 12 Peak Tracking Total 20 | . 7 6 3 10 . . 13 4 . . 2 6 6 20 6 Tactical Retreats 17 | . . . . . . . 9 . . . . 1 3 1 3 Traps | -11 -10 -9 -8 -8 -8 -8 -6 -5 -5 -5 -4 -4 -4 -4 -3 ------- Run | Yrd Mat Mat Mat Sto Rec Scr Fac Fac Upp Upp Fac Upp Upp War Pro Traps Triggered 5 | . 3 . 1 . . . 1 . . . . . . . . Indirectly . | . . . . . . . . . . . . . . . . Trap Hack Attempts . | . . . . . . . . . . . . . . . . Triggered . | . . . . . . . . . . . . . . . . Disarmed . | . . . . . . . . . . . . . . . . Reprogrammed . | . . . . . . . . . . . . . . . . Reused . | . . . . . . . . . . . . . . . . Traps Extracted . | . . . . . . . . . . . . . . . . Installed . | . . . . . . . . . . . . . . . . Triggered 9 | . . . . . . . . . . . . . 1 8 . Machines | -11 -10 -9 -8 -8 -8 -8 -6 -5 -5 -5 -4 -4 -4 -4 -3 ---------- Run | Yrd Mat Mat Mat Sto Rec Scr Fac Fac Upp Upp Fac Upp Upp War Pro Machines Disabled 8 | . . . . 4 . . 4 . . . . . . . . Max in Single Turn 3 | . . . . 1 . . 3 . . . . . . . . Machines Repaired . | . . . . . . . . . . . . . . . . Machines Dismantled 1 | . . . . 1 . . . . . . . . . . . Machines Sabotaged . | . . . . . . . . . . . . . . . . Overloaded Fab Kills . | . . . . . . . . . . . . . . . . Hacking | -11 -10 -9 -8 -8 -8 -8 -6 -5 -5 -5 -4 -4 -4 -4 -3 --------- Run | Yrd Mat Mat Mat Sto Rec Scr Fac Fac Upp Upp Fac Upp Upp War Pro Machines Accessed 34 | . 3 . 3 3 4 7 6 1 1 1 . 2 . 3 . Terminals 17 | . 3 . 3 3 2 . 4 1 1 . . . . . . Fabricators 1 | . . . . . . . 1 . . . . . . . . Repair Stations . | . . . . . . . . . . . . . . . . Recycling Units 1 | . . . . . . . 1 . . . . . . . . Scanalyzers . | . . . . . . . . . . . . . . . . Garrison Access . | . . . . . . . . . . . . . . . . Total Hacks 117 | . 10 . 7 7 29 36 16 2 3 1 . 2 . 4 . Successful 86 | . 3 . 3 3 27 36 4 . 3 1 . 2 . 4 . Failed 31 | . 7 . 4 4 2 . 12 2 . . . . . . . Catastrophic 7 | . . . 4 . 1 . 1 1 . . . . . . . Database Lockouts . | . . . . . . . . . . . . . . . . Manual 20 | . 1 . 2 4 1 4 6 2 . . . . . . . Terminals 47 | . 10 . 7 7 5 . 13 2 3 . . . . . . Fabricators 1 | . . . . . . . 1 . . . . . . . . Repair Stations . | . . . . . . . . . . . . . . . . Recycling Units 2 | . . . . . . . 2 . . . . . . . . Scanalyzers . | . . . . . . . . . . . . . . . . Garrison Access . | . . . . . . . . . . . . . . . . Terminal Hacks 85 | . 3 . 3 3 27 36 3 . 3 1 . 2 . 4 . Record 55 | . . . . . 24 26 . . 3 . . . . 2 . Robot Analysis 9 | . . . . . . 9 . . . . . . . . . Prototype ID Bank 4 | . 2 . 2 . . . . . . . . . . . . Open Door 6 | . . . . 1 . . . . . 1 . 2 . 2 . Open DSF 1 | . . . . . . . 1 . . . . . . . . Level Access Points 2 | . . . 1 . . . 1 . . . . . . . . Emergency Access Points 1 | . . . . . . . 1 . . . . . . . . Terminal Index 1 | . . . . . 1 . . . . . . . . . . Locate Traps 1 | . . . . 1 . . . . . . . . . . . Maintenance Status 1 | . . . . . 1 . . . . . . . . . . Security Status 1 | . . . . 1 . . . . . . . . . . . Hauler Manifests 1 | . 1 . . . . . . . . . . . . . . Zone Layout 1 | . . . . . 1 . . . . . . . . . . Derelict Proto ID Bank 1 | . . . . . . 1 . . . . . . . . . Fabricator Hacks . | . . . . . . . . . . . . . . . . Repair Station Hacks . | . . . . . . . . . . . . . . . . Recycling Unit Hacks . | . . . . . . . . . . . . . . . . Scanalyzer . | . . . . . . . . . . . . . . . . Garrison Access Hacks . | . . . . . . . . . . . . . . . . Unauthorized Hacks 1 | . . . . . . . 1 . . . . . . . . Terminals . | . . . . . . . . . . . . . . . . Fabricators . | . . . . . . . . . . . . . . . . Repair Stations 1 | . . . . . . . 1 . . . . . . . . Recycling Units . | . . . . . . . . . . . . . . . . Fedlink 1 | . . . . . . . 1 . . . . . . . . Scanalyzers . | . . . . . . . . . . . . . . . . Garrison Access . | . . . . . . . . . . . . . . . . Data Cores Recovered 1 | . . . . . . . . 1 . . . . . . . Used . | . . . . . . . . . . . . . . . . Hacking Detections 16 | . 3 . 2 2 1 . 6 1 1 . . . . . . Full Trace Events 6 | . 1 . 2 2 . . 1 . . . . . . . . Feedback Events 2 | . . . 1 1 . . . . . . . . . . . Corruption 2 | . . . 1 1 . . . . . . . . . . . Feedback Blocked . | . . . . . . . . . . . . . . . . Robot Schematics Acquired . | . . . . . . . . . . . . . . . . Robots Built . | . . . . . . . . . . . . . . . . Authchips . | . . . . . . . . . . . . . . . . Time . | . . . . . . . . . . . . . . . . Total Robot Build Rating . | . . . . . . . . . . . . . . . . Part Schematics Acquired . | . . . . . . . . . . . . . . . . Parts Built . | . . . . . . . . . . . . . . . . Authchips . | . . . . . . . . . . . . . . . . Time . | . . . . . . . . . . . . . . . . Total Part Build Rating . | . . . . . . . . . . . . . . . . Parts Repaired . | . . . . . . . . . . . . . . . . Time . | . . . . . . . . . . . . . . . . Parts Recycled . | . . . . . . . . . . . . . . . . Recycled Matter . | . . . . . . . . . . . . . . . . Retrieved Matter . | . . . . . . . . . . . . . . . . Retrieved Components . | . . . . . . . . . . . . . . . . Parts Scanalyzed . | . . . . . . . . . . . . . . . . Part Schematics Acquired . | . . . . . . . . . . . . . . . . Parts Damaged . | . . . . . . . . . . . . . . . . Bothacking | -11 -10 -9 -8 -8 -8 -8 -6 -5 -5 -5 -4 -4 -4 -4 -3 ------------ Run | Yrd Mat Mat Mat Sto Rec Scr Fac Fac Upp Upp Fac Upp Upp War Pro Used RIF Installer . | . . . . . . . . . . . . . . . . Robots Hacked . | . . . . . . . . . . . . . . . . Non-combat . | . . . . . . . . . . . . . . . . Combat . | . . . . . . . . . . . . . . . . Robot Hacks Applied . | . . . . . . . . . . . . . . . . Relay Couplers Released . | . . . . . . . . . . . . . . . . Fabnet Peak Effective % . | . . . . . . . . . . . . . . . . Robots Rewired 7 | . . . . 2 . . . . . . . . . 5 . Allies Hacked . | . . . . . . . . . . . . . . . . Hacks Repelled . | . . . . . . . . . . . . . . . . Allies | -11 -10 -9 -8 -8 -8 -8 -6 -5 -5 -5 -4 -4 -4 -4 -3 -------- Run | Yrd Mat Mat Mat Sto Rec Scr Fac Fac Upp Upp Fac Upp Upp War Pro Total Allies 15 | . . . . 10 . . . . . . . . . 5 . Largest Group 10 | . . . . 10 6 6 6 . . . . . . 5 . Highest-Rated Group 284 | . . . . 173 109 109 109 . . . . . . 284 . Highest-Rated Ally 65 | . . . . 29 29 29 29 . . . . . . 65 . Total Orders . | . . . . . . . . . . . . . . . . Ally Attacks 82 | . . . . 65 . . 12 . . . . . . 5 . Total Damage 1186 | . . . . 854 . . 116 . . . . . . 216 . Kills 13 | . . . . 11 . . 2 . . . . . . . . Allies Corrupted . | . . . . . . . . . . . . . . . . Allies Melted . | . . . . . . . . . . . . . . . . Intel | -11 -10 -9 -8 -8 -8 -8 -6 -5 -5 -5 -4 -4 -4 -4 -3 ------- Run | Yrd Mat Mat Mat Sto Rec Scr Fac Fac Upp Upp Fac Upp Upp War Pro Robot Analysis Total 9 | . . . . . . 9 . . . . . . . . . Derelict Logs Recovered 2 | . . . . . . . . . . . . 1 1 . . Drone Launches . | . . . . . . . . . . . . . . . . Drone Recoveries . | . . . . . . . . . . . . . . . . Exploration | -11 -10 -9 -8 -8 -8 -8 -6 -5 -5 -5 -4 -4 -4 -4 -3 ------------- Run | Yrd Mat Mat Mat Sto Rec Scr Fac Fac Upp Upp Fac Upp Upp War Pro Turns Passed 5176 | 638 352 559 394 226 213 691 497 120 172 37 158 253 195 543 128 Spaces Moved 9183 | 320 169 287 371 276 405 2402 1161 235 446 148 252 683 417 1328 283 Core 191 | 11 . . . . . . . . . . . . . . 180 Treads 336 | . . 218 118 . . . . . . . . . . . . Legs 547 | 309 169 69 . . . . . . . . . . . . . Wheels . | . . . . . . . . . . . . . . . . Hover . | . . . . . . . . . . . . . . . . Flight 8109 | . . . 253 276 405 2402 1161 235 446 148 252 683 417 1328 103 Fastest Speed 17 | 50 120 120 26 26 26 26 20 20 24 24 24 26 26 17 34 Average Speed 36 | 118 120 153 68 26 26 26 23 24 24 24 24 26 26 27 44 Slowest Speed 190 | 120 120 190 160 26 26 27 112 106 24 24 26 26 26 34 50 Overloaded Moves . | . . . . . . . . . . . . . . . . Propulsion Burnouts . | . . . . . . . . . . . . . . . . Robots Hopped 28 | . . . 3 4 . . 11 1 . . 2 . . 7 . Cave-ins Triggered . | . . . . . . . . . . . . . . . . Exploration Rate (%) 45 | 15 43 23 30 48 44 97 40 7 77 14 9 80 59 97 48 Regions Visited 15 Branch Regions 9 Pre-discovered Areas 1 | . . . . . . . . . . . . 1 . . . Known Exits Taken 1 | . . . . . . . 1 . . . . . . . . Unknown Exits Taken 14 | 1 1 1 1 1 1 1 . 1 1 1 1 1 1 1 . Scrap Searched 19 | . . . . . . 9 . . 3 . . 2 4 . 1 Spaces Dug 41 | 6 . . . . . . 35 . . . . . . . . Terrain Destroyed 267 | 10 . . 8 124 . . 105 . . . . 8 3 9 . Melee . | . . . . . . . . . . . . . . . . Projectile 30 | 10 . . . . . . . . . . . 8 3 9 . AOE 237 | . . . 8 124 . . 105 . . . . . . . . Terrain Rammed . | . . . . . . . . . . . . . . . . Walls Destroyed . | . . . . . . . . . . . . . . . . Machines Disabled . | . . . . . . . . . . . . . . . . Actions | -11 -10 -9 -8 -8 -8 -8 -6 -5 -5 -5 -4 -4 -4 -4 -3 --------- Run | Yrd Mat Mat Mat Sto Rec Scr Fac Fac Upp Upp Fac Upp Upp War Pro Total 10473 | 451 237 355 464 378 510 2460 1354 272 509 149 346 732 493 1479 284 Wait 769 | 38 . . 30 63 99 47 144 12 60 . 90 19 65 102 . Move 9115 | 319 168 286 365 267 404 2401 1139 232 445 147 247 682 416 1314 283 Hop 25 | . . . 2 4 . . 10 1 . . 2 . . 6 . Pick Up 58 | 14 3 7 9 . 2 2 10 1 1 . 1 3 2 3 . Fast Attach 47 | 7 1 7 2 1 1 1 11 3 2 . 2 1 . 8 . Attach 34 | 2 . 1 7 4 1 2 6 2 . . 1 2 2 4 . Detach 16 | . . . 4 2 1 1 2 2 . . 1 . . 3 . Swap 29 | 4 2 6 4 . . 3 1 2 . 1 . 5 1 . . Drop 69 | 7 4 14 14 . 1 3 8 3 1 1 2 6 1 4 . Fire 270 | 60 59 34 27 21 . . 23 14 . . . 14 6 12 . Melee . | . . . . . . . . . . . . . . . . Ram 1 | . . . . . . . . . . . . . . . 1 Kick . | . . . . . . . . . . . . . . . . Crush . | . . . . . . . . . . . . . . . . Escape Stasis . | . . . . . . . . . . . . . . . . Rewire 27 | . . . . 4 . . . . . . . . . 23 . Trap . | . . . . . . . . . . . . . . . . Miscellaneous 13 | . . . . 12 1 . . . . . . . . . . Route ------- -11/Scrapyard -10/Materials (discovered 3 exits: [*Mat] / [*Min x2]) -9/Materials (discovered 2 exits: *Mat / [*Min]) -8/Materials (discovered 4 exits: Fac x3 / *Sto) -8/Storage -8/Recycling -8/Scraptown (discovered 2 exits: *Fac x2) -6/Factory (discovered 4 exits: *Fac x4) -5/Factory -5/Upper Caves -5/Upper Caves -4/Factory -4/Upper Caves -4/Upper Caves -4/Warlord -3/Proximity Caves History --------- Turn | Location | Event 11 | -11/Scrapyard | Discovered new exit (range 15) 639 | -11/Scrapyard | Entered Materials 649 | -10/Materials | Build established: Mutant 792 | -10/Materials | Discovered new exit (range 11) 920 | -10/Materials | Core integrity fell below 50% 951 | -10/Materials | Discovered new exit (range 10) 967 | -10/Materials | Discovered new exit (range 8) 991 | -10/Materials | Entered another Materials area 991 | -9/Materials | Evolved 2 slots: Utility x2 1089 | -9/Materials | Discovered new exit (range 16) 1321 | -9/Materials | Discovered new exit (range 4) 1446 | -9/Materials | Build established: Scavenger-Mutant 1550 | -9/Materials | Entered another Materials area 1550 | -8/Materials | Evolved 2 slots: Propulsion x2 1900 | -8/Materials | Identified exit to Factory 1942 | -8/Materials | Discovered new exit (range 9) 1944 | -8/Materials | Entered Storage 2064 | -8/Storage | Assisted by bots powering up and referring to "LRC-V3" 2088 | -8/Storage | Garrison activated, responded to threat 2093 | -8/Storage | Lost 3 parts (1p1n1u) 2102 | -8/Storage | Discovered new exit (range 3) 2170 | -8/Storage | Entered Recycling 2170 | -8/Recycling | Accompanied by 6 allies 2234 | -8/Recycling | Scanned before Scraplab entrance 2238 | -8/Recycling | Discovered new exit (range 11) 2238 | -8/Recycling | Entered Scraplab 2382 | -8/Recycling | Build established: Commander-Sprinter 2383 | -8/Recycling | Entered Scraptown 2383 | -8/Scraptown | Accompanied by 6 allies 2384 | -8/Scraptown | System corruption cleaned by C-Scrubber 2415 | -8/Scraptown | Visited Awakened 2421 | -8/Scraptown | Visited Bundlers 2519 | -8/Scraptown | Discovered new exit (range 3) 2539 | -8/Scraptown | Visited Fellowship of the Rings 2552 | -8/Scraptown | Visited Assassins FH 2599 | -8/Scraptown | Visited UFD Registry 2601 | -8/Scraptown | Registered with UFD as "Kinetiparser" 2603 | -8/Scraptown | Visited SPCMW 2612 | -8/Scraptown | Visited CPS Storage 2616 | -8/Scraptown | Visited Comm Corps 2774 | -8/Scraptown | Visited Science Guys 2788 | -8/Scraptown | Visited LU-1G1's Boring Crew 2806 | -8/Scraptown | Visited Science Testing Area 2828 | -8/Scraptown | Visited Scrap Suit Storage 2830 | -8/Scraptown | Found Scrap Suit 2853 | -8/Scraptown | Visited A0-MCA Data Center 2854 | -8/Scraptown | Given an A- rating by A0-MCA 2857 | -8/Scraptown | Found A0-MCA's Component Scanner 2862 | -8/Scraptown | Visited Abandonware Association 2865 | -8/Scraptown | Learned abandonware demo "OVRCLOCK.EXE" 2867 | -8/Scraptown | Learned abandonware demo "REPAIR.EXE" 2867 | -8/Scraptown | Learned abandonware demo "REVENGE.EXE" 2879 | -8/Scraptown | Discovered new exit (range 5) 2911 | -8/Scraptown | Visited Analyses Database 2918 | -8/Scraptown | Visited Curators Association 2927 | -8/Scraptown | Visited Research Penetration Think Tank 2941 | -8/Scraptown | Visited Scrapoid Research Area 3074 | -8/Scraptown | Entered Factory 3074 | -6/Factory | Accompanied by 6 allies 3074 | -6/Factory | Evolved 4 slots: Power x1, Propulsion x2, Utility x1 3099 | -6/Factory | Discovered new exit (range 14) 3160 | -6/Factory | Lost 6 allies 3230 | -6/Factory | Spotted B-75 Beast 3264 | -6/Factory | Destroyed 15 combat bots 3274 | -6/Factory | Lost 9 parts (1p4n1u3w) 3424 | -6/Factory | First assault squad dispatched 3510 | -6/Factory | Identified exit to Factory 3564 | -6/Factory | Build established: Sprinter 3571 | -6/Factory | Entered another Factory area 3571 | -5/Factory | Evolved 2 slots: Utility x2 3664 | -5/Factory | Lost 3 parts (1p2n) 3690 | -5/Factory | Discovered new exit (range 4) 3691 | -5/Factory | Entered Upper Caves 3844 | -5/Upper Caves | Discovered new exit (range 9) 3863 | -5/Upper Caves | Entered another Upper Caves area 3894 | -5/Upper Caves | Discovered new exit (range 15) 3900 | -5/Upper Caves | Entered Factory 3900 | -4/Factory | Evolved 2 slots: Propulsion x2 4056 | -4/Factory | Discovered new exit (range 6) 4058 | -4/Factory | Entered Upper Caves 4285 | -4/Upper Caves | Found DCF Scrap (14 items) 4291 | -4/Upper Caves | Learned location of Armory (-3) 4308 | -4/Upper Caves | Discovered new exit (range 13) 4311 | -4/Upper Caves | Entered another Upper Caves area 4471 | -4/Upper Caves | Attracted the attention of an 0b10 outpost 4502 | -4/Upper Caves | Discovered new exit (range 10) 4506 | -4/Upper Caves | Entered Warlord 4532 | -4/Warlord | Discovered new exit (range 9) 4706 | -4/Warlord | Rebuked by Warlord 4731 | -4/Warlord | Warlord's base attacked by MAIN.C 4782 | -4/Warlord | Met EX-DEC 4785 | -4/Warlord | Found Vortex Rail 4893 | -4/Warlord | Spotted B-86 Titan 4899 | -4/Warlord | Spotted B-90 Cyclops 4928 | -4/Warlord | Opened side exit 5003 | -4/Warlord | Lost 4 parts (2n2u) 5035 | -4/Warlord | Warlord forces counterattacked 5044 | -4/Warlord | Spotted Executioner 5044 | -4/Warlord | Spotted Executioner 5049 | -4/Warlord | Entered Proximity Caves 5058 | -3/Proximity Caves | Spotted B-86 Titan 5070 | -3/Proximity Caves | Core integrity fell below 50% 5096 | -3/Proximity Caves | Core integrity fell below 20% 5135 | -3/Proximity Caves | Lost 13 parts (3p8n2u) 5174 | -3/Proximity Caves | Snuck into a huge 0b10 base via the rear entrance 5177 | -3/Proximity Caves | Destroyed by S-43 Plague with Heavy Machine Gun Last Messages --------------- 05049_ I-47 Archangel distress signal jammed. [Achievement: Charge!!!] LOCATION=UNKNOWN GOAL=ESCAPE 05049_ Searching scrap... 05049_ Found Hcp. Storage Unit. 05049_ Found Imp. Dynamic Insulation System. 05049_ Found 56 Matter. 05062_ Penetrated by Slug. 05062_ Slug penetrates Wall. 05075_ VTOL Module destroyed. 05083_ Slug penetrates Wall. 05086_ Xenon Bombardment Thruster destroyed. 05089_ Slug penetrates Wall. 05104_ Imp. Hacking Suite destroyed. 05111_ System corrupted: Component data lost. 05164_ Slammed into S-43 Plague. [Achievement: This Is Interesting...] [Achievement: Achiever] Map ----- +----------------------------------------------------+ | ?????????????????????????????????????????????????? | | ?????????????????????????????????????????????????? | | ?????????????????????????????????????????????????? | | ?????????????????????????????????????????????????? | | ?????????????????????????????????????????????????? | | ?????????????????????????????????????????????????? | | ?????????????????????????????????????????????????? | | ?????????????????????????????????????????????????? | | ?????????????????????????????????????????????????? | | ?????????????????????????????????????????????????? | | ????????????????????????? ??????????????????????? | | ????????????????????????? ??????????????????????? | | ????????????????????????? ??????????????????????? | | ????????????????????????? #?????????????????????? | | ????????????????????????? #?????????????????????? | | ????????????????????????? #?????????????????????? | | ????????????????????????? #?????????????????????? | | ????????????????????????# #?????????????????????? | | ????????????????????????# #?????????????????????? | | ????????????????????????# #?????????????????????? | | ????????????????????????# #?????????????????????? | | ????????????????????????# #?????????????????????? | | ????????????????????????# #?????????????????????? | | ??????????????????????### ###???????????????????? | | ???????????????????????w w#???????????????????? | | ????????????????????????#@ #?????????????????????? | | ????????????????????????# #?????????????????????? | | ????????????????????????# #?????????????????????? | | ????????????????????????# #?????????????????????? | | ????????????????????????# #?????????????????????? | | ????????????????????????# #?????????????????????? | | ????????????????????????# #?????????????????????? | | ????????????????????????#//#?????????????????????? | | ????????????????????????#s #?????????????????????? | | ????????????????????????# #?????????????????????? | | ????????????????????????#s #?????????????????????? | | ????????????????????????#ss#?????????????????????? | | ????????????????????????# #?????????????????????? | | ????????####????????????# #?????????????????????? | | ???????## ##???????????# #?????????????????????? | | ??###### #?????###???# #?????????????????????? | | ?## #????## ##### #?????????????????????? | | ## #????# #?????????????????????? | | # ##### ###### #?????????????????????? | | ##??## #?????????????????????? | | #???# #?????????????????????? | | ## #??# ### ## #?????????????????????? | | ##?# #?# ### ## #?????????????????????? | | ##???# ## ## ##?????????????????????? | | ?????? ### ##%### ##??????????????????????? | +----------------------------------------------------+ Best States ------------- Heat Dissipation 74 Energy Generation 31 Energy Capacity 325 Matter Stores 300 Matter Capacity 300 Sight Range 22 Robot Scan Range 15 Terrain Scan Range 16 Terrain Scan Density 10 Jamming Range 14 Cloak Strength 2 Corruption Block 15 Armor Coverage 450 Phase Shifting 5 Evasion (%) 69 Recoil Reduction 2 Offensive Hacking 12 Defensive Hacking 12 Item Schematics ----------------- None Robot Schematics ------------------ None Fabricated ------------ Nothing Alien Tech Used ----------------- None Achievements -------------- A Powerful Ally? Achiever Armchair Analyst Charge!!! Hunted Respectable Loadout This Is Interesting... Total Silence Challenges ------------ None Game ------ Seed HardenedIntegratedClaws Manual? 0 Play Time 02:38:45 Cumulative 32.3 hours Start 2024.10.10 @ 20:06:35 End 2024.10.12 @ 21:33:36 Sessions 3 Manual Loads 0 Difficulty Rogue Special Mode None Game No. 38 Rogue 38 Adventurer 0 Explorer 0 Win Type - Total 0 Types 0/0/0/0/0/0/0/0/0 Lore% 27 Gallery% 27 Achievement% 26 Wizard Run 0 Options --------- Layout 1 ASCII 0 Keyboard 1 Movement Numpad Keybinds 0 Fullscreen 2 Font 48/Tamsyn Map View 50x35 Zoom Use 0% Tactical HUD 1 Map Filters NONE Filters NONE Steam 1 RUN: 481b5518-325a-4195-af5d-283553b37137